fUST/lending_fUST_20240501
["ID","MTS","AMOUNT","RATE_DAILY","PERIOD"]
[325165554,1714546239285,-500.0,0.00071232,120]
[325165555,1714546239294,-500.0,0.00071232,120]
[325165556,1714546239303,-205.8233674,0.00071232,120]
[325165557,1714546239313,-500.0,0.00071232,120]
[325165558,1714546239322,-500.0,0.00071232,120]
[325165559,1714546239331,-500.0,0.00071232,120]
[325165560,1714546239341,-500.0,0.00071232,120]
[325165561,1714546239350,-1807.93,0.00071232,120]
[325165563,1714546239360,-500.0,0.00071232,120]
[325165565,1714546239370,-500.0,0.00071232,120]
[325165567,1714546239379,-500.0,0.00071232,120]
[325165569,1714546239391,-500.0,0.00071232,120]
[325165571,1714546239401,-183.54657057,0.00071232,120]
[325165573,1714546239411,-500.0,0.00071232,120]
[325165575,1714546239420,-495.00160973,0.00071232,120]
[325165577,1714546239430,-500.0,0.00071232,120]
[325165579,1714546239439,-500.0,0.00071232,120]
[325165580,1714546239449,-500.0,0.00071232,120]
[325165582,1714546239458,-500.0,0.00071232,120]
[325165584,1714546239467,-173.886149,0.00071644,120]
[325165586,1714546239477,-10000.0,0.0007321,120]
[325165588,1714546239487,-1000.0,0.00073529,120]
[325165590,1714546239496,-820.154344,0.00073936,30]
[325165592,1714546239506,-568.0,0.00075,120]
[325165594,1714546239515,-160.7713341,0.00075242,2]
[325165596,1714546239525,-1000.0,0.00075986,120]
[325165598,1714546239534,-999.0,0.00076611,120]
[325165600,1714546239544,-8044.78707885,0.00076612,2]
[325165601,1714546239553,-999.0,0.00076711,120]
[325165603,1714546239563,-999.0,0.00076711,120]
[325165604,1714546239572,-999.0,0.00076711,120]
[325165605,1714546239582,-500.0,0.00076712,120]
[325165606,1714546239591,-500.0,0.00076712,120]
[325165607,1714546239601,-501.25378823,0.00076712,120]
[325165608,1714546239611,-500.0,0.00076712,120]
[325165609,1714546239620,-500.0,0.00076712,120]
[325165610,1714546239630,-500.0,0.00076712,120]
[325165611,1714546239641,-500.0,0.00076712,120]
[325165612,1714546239650,-500.0,0.00076712,120]
[325165613,1714546239659,-500.0,0.00076712,120]
[325165615,1714546239668,-500.0,0.00076712,120]
[325165617,1714546239677,-203.41366209,0.00076712,120]
[325165619,1714546239687,-500.0,0.00076712,120]
[325165621,1714546239696,-500.0,0.00076712,120]
[325165623,1714546239705,-716.72,0.00076712,120]
[325165625,1714546239715,-500.0,0.00076712,120]
[325165627,1714546239725,-500.0,0.00076712,120]
[325165629,1714546239734,-500.0,0.00076712,120]
[325165631,1714546239743,-500.0,0.00076712,120]
[325165633,1714546239753,-500.0,0.00076712,120]
[325165636,1714546239763,-500.0,0.00076712,120]
[325165639,1714546239772,-500.0,0.00076712,120]
[325165641,1714546239782,-500.0,0.00076712,120]
[325165643,1714546239792,-289.42509886,0.00076712,120]
[325165645,1714546239801,-500.0,0.00076712,120]
[325165647,1714546239810,-500.0,0.00076712,120]
[325165649,1714546239820,-500.0,0.00076712,120]
[325165651,1714546239829,-500.0,0.00076712,120]
[325165653,1714546239838,-500.0,0.00076712,60]
[325165655,1714546239849,-500.0,0.00076712,120]
[325165657,1714546239857,-500.0,0.00076712,120]
[325165659,1714546239867,-500.0,0.00076712,120]
[325165661,1714546239877,-129.08867687,0.00076712,120]
[325165665,1714546240434,-500.0,0.00071232,120]
[325165666,1714546240443,-300.2864828,0.00076712,120]
[325165679,1714546240749,-70.62484033,0.00076712,120]
[325165681,1714546240759,-25.86099813,0.00076712,120]
[325165686,1714546240795,-474.13900187,0.00076712,120]
[325165688,1714546240804,-500.0,0.00076712,120]
[325165690,1714546240815,-500.0,0.00076712,120]
[325165692,1714546240825,-500.0,0.00076712,120]
[325165694,1714546240834,-500.0,0.00076712,120]
[325165696,1714546240844,-210.07314863,0.00076712,120]
[325165698,1714546240855,-500.0,0.00076712,120]
[325165700,1714546240865,-500.0,0.00076712,120]
[325165703,1714546240875,-500.0,0.00076712,120]
[325165705,1714546240885,-500.0,0.00076712,120]
[325165707,1714546240896,-500.0,0.00076712,120]
[325165709,1714546240905,-500.0,0.00076712,120]
[325165711,1714546240916,-500.0,0.00076712,120]
[325165712,1714546240925,-501.41005815,0.00076712,120]
[325165715,1714546240936,-500.0,0.00076712,120]
[325165717,1714546240946,-500.0,0.00076712,120]
[325165719,1714546240956,-500.0,0.00076712,120]
[325165721,1714546240967,-500.0,0.00076712,120]
[325165723,1714546240976,-500.0,0.00076712,120]
[325165725,1714546240986,-500.0,0.00076712,120]
[325165727,1714546240996,-501.89017585,0.00076712,120]
[325165729,1714546241006,-332.08826878,0.00076712,120]
[325165731,1714546241016,-500.0,0.00076712,120]
[325165733,1714546241026,-500.0,0.00076712,120]
[325165735,1714546241036,-500.0,0.00076712,120]
[325165737,1714546241046,-500.0,0.00076712,120]
[325165739,1714546241055,-1875.41,0.00076712,120]
[325165741,1714546241064,-500.0,0.00076712,2]
[325165743,1714546241074,-503.90873866,0.00076712,120]
[325165745,1714546241084,-500.0,0.00076712,120]
[325165747,1714546241094,-1804.2,0.00076712,120]
[325165749,1714546241104,-500.0,0.00076712,120]
[325165751,1714546241113,-500.0,0.00076712,120]
[325165753,1714546241123,-500.0,0.00076712,120]
[325165754,1714546241132,-500.0,0.00076712,120]
[325165757,1714546241144,-500.0,0.00076712,120]
[325165758,1714546241155,-500.0,0.00076712,120]
[325165760,1714546241165,-500.0,0.00076712,120]
[325165762,1714546241176,-500.0,0.00076712,120]
[325165764,1714546241185,-502.4256326,0.00076712,120]
[325165767,1714546241195,-505.45309806,0.00076712,120]
[325165768,1714546241206,-500.0,0.00076712,120]
[325165770,1714546241216,-500.0,0.00076712,120]
[325165772,1714546241227,-500.0,0.00076712,120]
[325165774,1714546241238,-500.0,0.00076712,120]
[325165776,1714546241248,-500.0,0.00076712,120]
[325165779,1714546241257,-500.0,0.00076712,120]
[325165781,1714546241267,-500.0,0.00076712,120]
[325165782,1714546241287,-810.87,0.00076712,2]
[325165784,1714546241307,-500.0,0.00076712,120]
[325165786,1714546241319,-503.65163018,0.00076712,120]
[325165788,1714546241329,-500.0,0.00076712,120]
[325165791,1714546241339,-500.0,0.00076712,120]
[325165793,1714546241350,-500.0,0.00076712,120]
[325165794,1714546241361,-500.0,0.00076712,120]
[325165796,1714546241371,-1488.63,0.00076712,120]
[325165798,1714546241382,-3110.69,0.00076712,2]
[325165801,1714546241392,-500.0,0.00076712,120]
[325165803,1714546241402,-550.4,0.00076712,120]
[325165804,1714546241411,-265.78,0.00076712,120]
[325165807,1714546241423,-3014.12,0.00076712,120]
[325165809,1714546241432,-1177.13,0.00076712,120]
[325165811,1714546241442,-500.0,0.00076712,120]
[325165813,1714546241452,-500.0,0.00076712,120]
[325165815,1714546241462,-500.0,0.00076712,120]
[325165817,1714546241471,-502.00570589,0.00076712,120]
[325165819,1714546241481,-199.82867865,0.00076712,120]
[325165820,1714546241491,-500.0,0.00076712,120]
[325165823,1714546241500,-500.0,0.00076712,120]
[325165825,1714546241510,-346.45141823,0.00076712,120]
[325165827,1714546241523,-155.5314617,0.00076712,120]
[325165829,1714546241532,-500.0,0.00076712,120]
[325165831,1714546241542,-500.0,0.00076712,120]
[325165833,1714546241552,-500.0,0.00076712,120]
[325165845,1714546241646,-500.0,0.00076712,120]
[325165847,1714546241672,-500.0,0.00076712,120]
[325165849,1714546241682,-500.0,0.00076712,120]
[325165851,1714546241691,-500.0,0.00076712,120]
[325165853,1714546241701,-500.0,0.00076712,120]
[325165855,1714546241711,-1841.07,0.00076712,120]
[325165857,1714546241720,-500.0,0.00076712,120]
[325165859,1714546241731,-500.0,0.00076712,3]
[325165861,1714546241741,-500.0,0.00076712,120]
[325165863,1714546241751,-500.0,0.00076712,120]
[325165865,1714546241760,-500.0,0.00076712,120]
[325165867,1714546241770,-500.0,0.00076712,120]
[325165869,1714546241779,-500.0,0.00076712,120]
[325165871,1714546241789,-1851.3,0.00076712,120]
[325165873,1714546241798,-335.35084431,0.00076712,120]
[325165875,1714546241808,-500.0,0.00076712,120]
[325165877,1714546241817,-500.0,0.00076712,120]
[325165879,1714546241826,-500.0,0.00076712,120]
[325165881,1714546241835,-1715.08,0.00076712,120]
[325165883,1714546241845,-500.0,0.00076712,120]
[325165885,1714546241854,-500.0,0.00076712,120]
[325165887,1714546241863,-500.0,0.00076712,120]
[325165889,1714546241872,-500.0,0.00076712,120]
[325165891,1714546241881,-914.64,0.00076712,120]
[325165893,1714546241892,-272.30821333,0.00076712,120]
[325165895,1714546241901,-500.0,0.00076712,120]
[325165897,1714546241911,-500.0,0.00076712,120]
[325165899,1714546241920,-1085.62,0.00076712,120]
[325165901,1714546241929,-495.22664148,0.00076712,120]
[325165903,1714546241938,-500.0,0.00076712,120]
[325165905,1714546241947,-500.0,0.00076712,120]
[325165908,1714546241957,-3533.27,0.00076712,120]
[325165910,1714546241967,-500.0,0.00076712,120]
[325165912,1714546241976,-500.0,0.00076712,120]
[325165914,1714546241985,-500.0,0.00076712,120]
[325165916,1714546241994,-500.0,0.00076712,120]
[325165918,1714546242003,-512.65594973,0.00076712,120]
[325165920,1714546242012,-500.0,0.00076712,120]
[325165922,1714546242021,-500.0,0.00076712,120]
[325165924,1714546242030,-500.0,0.00076712,120]
[325165926,1714546242039,-605.20638172,0.00076712,120]
[325165928,1714546242049,-502.20110562,0.00076712,120]
[325165930,1714546242059,-1054.69,0.00076712,120]
[325165932,1714546242068,-1415.76,0.00076712,120]
[325165934,1714546242077,-500.0,0.00076712,120]
[325165936,1714546242087,-1014.83,0.00076712,120]
[325165938,1714546242096,-208.55650036,0.00076712,120]
[325165940,1714546242106,-500.0,0.00076712,120]
[325165942,1714546242115,-1534.36,0.00076712,120]
[325165944,1714546242124,-500.0,0.00076712,120]
[325165946,1714546242133,-500.0,0.00076712,120]
[325165948,1714546242143,-502.44148202,0.00076712,120]
[325165950,1714546242153,-500.0,0.00076712,120]
[325165952,1714546242162,-500.0,0.00076712,120]
[325165954,1714546242172,-995.97,0.00076712,120]
[325165956,1714546242182,-500.0,0.00076712,120]
[325165958,1714546242191,-500.0,0.00076712,120]
[325165960,1714546242199,-500.0,0.00076712,120]
[325165962,1714546242209,-500.0,0.00076712,120]
[325165964,1714546242218,-500.0,0.00076712,120]
[325165966,1714546242227,-644.07,0.00076712,120]
[325165968,1714546242237,-500.87945794,0.00076712,120]
[325165970,1714546242247,-500.0,0.00076712,120]
[325165972,1714546242256,-500.0,0.00076712,120]
[325165974,1714546242265,-500.0,0.00076712,120]
[325165976,1714546242279,-500.0,0.00076712,120]
[325165978,1714546242288,-500.0,0.00076712,120]
[325165980,1714546242297,-3882.92,0.00076712,120]
[325165982,1714546242306,-717.21,0.00076712,120]
[325165984,1714546242315,-500.0,0.00076712,120]
[325165986,1714546242324,-500.0,0.00076712,120]
[325165988,1714546242333,-500.0,0.00076712,120]
[325165990,1714546242343,-500.0,0.00076712,120]
[325165991,1714546242351,-500.0,0.00076712,120]
[325165994,1714546242361,-500.0,0.00076712,120]
[325165996,1714546242374,-1734.84,0.00076712,120]
[325165997,1714546242383,-500.0,0.00076712,120]
[325166000,1714546242394,-500.0,0.00076712,120]
[325166002,1714546242403,-294.99521183,0.00076712,120]
[325166003,1714546242412,-2727.98,0.00076712,120]
[325166006,1714546242422,-500.0,0.00076712,120]
[325166008,1714546242431,-500.0,0.00076712,120]
[325166009,1714546242442,-500.0,0.00076712,120]
[325166011,1714546242458,-301.78688122,0.00076712,7]
[325166014,1714546242468,-511.76493726,0.00076712,120]
[325166016,1714546242477,-500.0,0.00076712,120]
[325166017,1714546242487,-500.0,0.00076712,120]
[325166019,1714546242496,-3245.69,0.00076712,120]
[325166022,1714546242505,-500.0,0.00076712,120]
[325166024,1714546242514,-500.0,0.00076712,120]
[325166026,1714546242524,-807.45,0.00076712,120]
[325166028,1714546242533,-504.97869407,0.00076712,120]
[325166030,1714546242542,-2036.72,0.00076712,120]
[325166032,1714546242551,-485.85548076,0.00076712,120]
[325166033,1714546242560,-500.0,0.00076712,60]
[325166036,1714546242569,-433.09130654,0.00076712,120]
[325166038,1714546242579,-180.35606184,0.00076712,120]
[325166040,1714546242587,-500.0,0.00076712,120]
[325166041,1714546242597,-500.0,0.00076712,120]
[325166043,1714546242606,-536.08,0.00076712,120]
[325166045,1714546242615,-500.0,0.00076712,120]
[325166048,1714546242625,-500.0,0.00076712,120]
[325166050,1714546242635,-500.0,0.00076712,120]
[325166052,1714546242644,-500.0,0.00076712,120]
[325166054,1714546242653,-999.61,0.00076712,120]
[325166056,1714546242663,-500.0,0.00076712,120]
[325166058,1714546242671,-1298.07,0.00076712,120]
[325166060,1714546242681,-500.0,0.00076712,120]
[325166062,1714546242690,-500.0,0.00076712,120]
[325166064,1714546242699,-500.0,0.00076712,120]
[325166066,1714546242708,-500.0,0.00076712,120]
[325166068,1714546242717,-500.0,0.00076712,120]
[325166070,1714546242726,-500.0,0.00076712,120]
[325166072,1714546242735,-11125.5,0.00076712,120]
[325166074,1714546242743,-500.0,0.00076712,120]
[325166076,1714546242752,-500.0,0.00076712,120]
[325166078,1714546242761,-500.0,0.00076712,120]
[325166080,1714546242770,-500.0,0.00076712,120]
[325166082,1714546242779,-500.0,0.00076712,120]
[325166084,1714546242788,-500.0,0.00076712,120]
[325166086,1714546242797,-819.11,0.00076712,120]
[325166088,1714546242806,-500.0,0.00076712,120]
[325166090,1714546242815,-500.0,0.00076712,120]
[325166092,1714546242823,-500.0,0.00076712,120]
[325166094,1714546242833,-500.0,0.00076712,120]
[325166095,1714546242842,-500.0,0.00076712,120]
[325166098,1714546242851,-514.25,0.00076712,21]
[325166100,1714546242860,-500.0,0.00076712,7]
[325166102,1714546242869,-500.0,0.00076712,120]
[325166104,1714546242878,-1802.95,0.00076712,120]
[325166106,1714546242888,-692.07,0.00076712,120]
[325166108,1714546242897,-359.3941898,0.00076712,120]
[325166109,1714546242906,-2749.95,0.00076712,120]
[325166112,1714546242916,-552.61302798,0.00076712,120]
[325166114,1714546242926,-500.0,0.00076712,120]
[325166115,1714546242935,-1019.53,0.00076712,120]
[325166117,1714546242944,-565.13989587,0.00076712,120]
[325166119,1714546242954,-500.0,0.00076712,120]
[325166121,1714546242963,-500.0,0.00076712,120]
[325166124,1714546242972,-500.0,0.00076712,120]
[325166126,1714546242982,-1807.93,0.00076712,120]
[325166128,1714546242992,-494.75787689,0.00076712,120]
[325166130,1714546243001,-500.0,0.00076712,120]
[325166132,1714546243010,-500.0,0.00076712,120]
[325166134,1714546243019,-500.0,0.00076712,120]
[325166135,1714546243027,-500.0,0.00076712,120]
[325166137,1714546243037,-10000.0,0.00076944,120]
[325166140,1714546243046,-220.949281,0.00077132,120]
[325166141,1714546243056,-460.31323,0.00078742,2]
[325166143,1714546243065,-160.7713341,0.00079352,2]
[325166145,1714546243075,-1000.0,0.00080091,120]
[325166147,1714546243084,-10000.0,0.00080869,120]
[325166149,1714546243093,-999.0,0.00082168,120]
[325166151,1714546243102,-46092.91121719,0.00082169,14]
[325166153,1714546243111,-999.0,0.0008219,120]
[325166155,1714546243121,-999.0,0.0008219,120]
[325166157,1714546243130,-999.0,0.0008219,120]
[325166159,1714546243141,-999.0,0.0008219,120]
[325166161,1714546243150,-500.0,0.00082191,120]
[325166163,1714546243160,-500.0,0.00082191,120]
[325166165,1714546243169,-420.9993239,0.00082191,120]
[325166167,1714546243178,-375.52763516,0.00082191,120]
[325166169,1714546243188,-373.92928859,0.00082191,120]
[325166172,1714546243206,-500.0,0.00082191,120]
[325166174,1714546243217,-500.0,0.00082191,120]
[325166176,1714546243227,-328.34087985,0.00082191,120]
[325166178,1714546243237,-716.72,0.00082191,120]
[325166180,1714546243247,-318.10307491,0.00082191,120]
[325166182,1714546243256,-500.0,0.00082191,120]
[325166184,1714546243265,-259.09559822,0.00082191,120]
[325166186,1714546243276,-500.0,0.00082191,120]
[325166188,1714546243286,-500.0,0.00082191,120]
[325166191,1714546243299,-405.81284681,0.00082191,120]
[325166192,1714546243308,-500.0,0.00082191,60]
[325166195,1714546243319,-560.196425,0.00082191,120]
[325166196,1714546243328,-500.0,0.00082191,120]
[325166198,1714546243338,-500.0,0.00082191,120]
[325166200,1714546243348,-500.0,0.00082191,120]
[325166203,1714546243358,-500.0,0.00082191,120]
[325166205,1714546243368,-500.0,0.00082191,120]
[325166207,1714546243380,-500.0,0.00082191,120]
[325166209,1714546243390,-507.04897982,0.00082191,120]
[325166211,1714546243400,-500.0,0.00082191,120]
[325166213,1714546243410,-500.0,0.00082191,120]
[325166215,1714546243420,-494.160256,0.00082191,120]
[325166217,1714546243430,-500.0,0.00082191,120]
[325166219,1714546243440,-500.0,0.00082191,120]
[325166220,1714546243464,-500.0,0.00082191,120]
[325166222,1714546243474,-500.0,0.00082191,120]
[325166225,1714546243485,-500.0,0.00082191,120]
[325166227,1714546243496,-500.0,0.00082191,120]
[325166229,1714546243506,-475.47706406,0.00082191,120]
[325166231,1714546243516,-500.0,0.00082191,120]
[325166233,1714546243526,-500.0,0.00082191,120]
[325166234,1714546243536,-500.0,0.00082191,120]
[325166237,1714546243547,-500.0,0.00082191,120]
[325166239,1714546243557,-500.0,0.00082191,120]
[325166241,1714546243567,-500.0,0.00082191,120]
[325166243,1714546243577,-397.15623747,0.00082191,120]
[325166245,1714546243587,-340.58819641,0.00082191,120]
[325166247,1714546243596,-1875.41,0.00082191,120]
[325166249,1714546243605,-500.0,0.00082191,2]
[325166251,1714546243615,-500.0,0.00082191,120]
[325166253,1714546243624,-1804.2,0.00082191,120]
[325166255,1714546243634,-500.0,0.00082191,120]
[325166257,1714546243644,-500.0,0.00082191,120]
[325166259,1714546243654,-500.0,0.00082191,120]
[325166261,1714546243663,-500.0,0.00082191,120]
[325166263,1714546243672,-500.0,0.00082191,120]
[325166265,1714546243682,-581.06479433,0.00082191,120]
[325166267,1714546243691,-500.0,0.00082191,120]
[325166269,1714546243700,-500.0,0.00082191,120]
[325166271,1714546243710,-500.0,0.00082191,120]
[325166273,1714546243719,-500.0,0.00082191,120]
[325166275,1714546243729,-500.0,0.00082191,120]
[325166277,1714546243738,-505.35606736,0.00082191,120]
[325166279,1714546243748,-500.0,0.00082191,120]
[325166281,1714546243757,-500.0,0.00082191,120]
[325166283,1714546243766,-500.0,0.00082191,120]
[325166285,1714546243776,-810.87,0.00082191,2]
[325166287,1714546243786,-500.0,0.00082191,120]
[325166289,1714546243795,-500.0,0.00082191,120]
[325166291,1714546243806,-500.0,0.00082191,120]
[325166293,1714546243815,-500.0,0.00082191,120]
[325166295,1714546243825,-500.0,0.00082191,120]
[325166297,1714546243834,-1488.63,0.00082191,120]
[325166299,1714546243844,-3110.69,0.00082191,2]
[325166301,1714546243856,-500.0,0.00082191,120]
[325166303,1714546243865,-550.4,0.00082191,120]
[325166305,1714546243875,-3014.12,0.00082191,120]
[325166307,1714546243884,-1177.13,0.00082191,120]
[325166309,1714546243894,-503.76739879,0.00082191,120]
[325166311,1714546243903,-500.0,0.00082191,120]
[325166313,1714546243913,-500.0,0.00082191,120]
[325166315,1714546243923,-500.0,0.00082191,120]
[325166317,1714546243932,-500.0,0.00082191,120]
[325166319,1714546243941,-500.0,0.00082191,120]
[325166321,1714546243951,-500.0,0.00082191,120]
[325166323,1714546243960,-500.0,0.00082191,120]
[325166325,1714546243969,-500.0,0.00082191,120]
[325166327,1714546243979,-500.0,0.00082191,120]
[325166329,1714546243988,-502.22103698,0.00082191,120]
[325166331,1714546243998,-500.0,0.00082191,120]
[325166334,1714546244008,-1841.07,0.00082191,120]
[325166340,1714546244017,-590.59064369,0.00082191,120]
[325166345,1714546244026,-500.0,0.00082191,120]
[325166349,1714546244035,-500.0,0.00082191,120]
[325166353,1714546244045,-1851.3,0.00082191,120]
[325166356,1714546244054,-500.0,0.00082191,120]
[325166359,1714546244063,-500.0,0.00082191,120]
[325166362,1714546244073,-1715.08,0.00082191,120]
[325166365,1714546244082,-500.0,0.00082191,120]
[325166368,1714546244092,-500.0,0.00082191,120]
[325166371,1714546244102,-500.0,0.00082191,120]
[325166374,1714546244111,-914.64,0.00082191,120]
[325166377,1714546244120,-500.0,0.00082191,120]
[325166380,1714546244130,-500.0,0.00082191,120]
[325166383,1714546244139,-1085.62,0.00082191,120]
[325166414,1714546244268,-500.0,0.00082191,120]
[325166417,1714546244283,-500.0,0.00082191,120]
[325166420,1714546244292,-3533.27,0.00082191,120]
[325166423,1714546244301,-500.0,0.00082191,120]
[325166426,1714546244310,-500.0,0.00082191,120]
[325166429,1714546244321,-500.0,0.00082191,120]
[325166432,1714546244331,-500.0,0.00082191,120]
[325166435,1714546244340,-1054.69,0.00082191,120]
[325166438,1714546244351,-1415.76,0.00082191,120]
[325166441,1714546244360,-500.0,0.00082191,120]
[325166444,1714546244369,-1014.83,0.00082191,120]
[325166447,1714546244378,-178.63064323,0.00082191,120]
[325166450,1714546244388,-1534.36,0.00082191,120]
[325166453,1714546244398,-500.0,0.00082191,120]
[325166455,1714546244407,-500.0,0.00082191,120]
[325166458,1714546244417,-490.16253665,0.00082191,120]
[325166461,1714546244427,-500.0,0.00082191,120]
[325166464,1714546244436,-500.0,0.00082191,120]
[325166467,1714546244446,-500.0,0.00082191,120]
[325166470,1714546244455,-500.0,0.00082191,120]
[325166473,1714546244464,-995.97,0.00082191,120]
[325166476,1714546244473,-500.0,0.00082191,120]
[325166479,1714546244483,-500.0,0.00082191,120]
[325166481,1714546244493,-644.07,0.00082191,120]
[325166483,1714546244502,-501.83533882,0.00082191,120]
[325166485,1714546244511,-500.0,0.00082191,120]
[325166487,1714546244520,-500.0,0.00082191,120]
[325166489,1714546244530,-504.95664034,0.00082191,120]
[325166491,1714546244539,-3882.92,0.00082191,120]
[325166493,1714546244549,-717.21,0.00082191,120]
[325166495,1714546244559,-500.0,0.00082191,120]
[325166497,1714546244568,-500.0,0.00082191,120]
[325166499,1714546244577,-500.0,0.00082191,120]
[325166500,1714546244586,-500.0,0.00082191,120]
[325166502,1714546244595,-572.13635796,0.00082191,120]
[325166504,1714546244604,-500.0,0.00082191,120]
[325166506,1714546244614,-1734.84,0.00082191,120]
[325166508,1714546244623,-500.0,0.00082191,120]
[325166510,1714546244632,-2727.98,0.00082191,120]
[325166512,1714546244643,-569.73,0.00082191,120]
[325166514,1714546244652,-500.0,0.00082191,120]
[325166516,1714546244661,-500.0,0.00082191,120]
[325166518,1714546244670,-3245.69,0.00082191,120]
[325166520,1714546244680,-500.0,0.00082191,120]
[325166522,1714546244689,-807.45,0.00082191,120]
[325166524,1714546244698,-1000.0,0.00082191,120]
[325166526,1714546244706,-1000.0,0.00082191,120]
[325166528,1714546244716,-1000.0,0.00082191,120]
[325166530,1714546244724,-2036.72,0.00082191,120]
[325166532,1714546244734,-500.0,0.00082191,60]
[325166534,1714546244743,-500.0,0.00082191,120]
[325166536,1714546244752,-500.0,0.00082191,120]
[325166537,1714546244761,-500.0,0.00082191,120]
[325166539,1714546244771,-540.23816417,0.00082191,120]
[325166541,1714546244779,-506.33343592,0.00082191,120]
[325166543,1714546244789,-999.61,0.00082191,120]
[325166545,1714546244798,-1298.07,0.00082191,120]
[325166547,1714546244807,-500.0,0.00082191,120]
[325166549,1714546244816,-183.28,0.00082191,120]
[325166551,1714546244826,-500.0,0.00082191,120]
[325166553,1714546244836,-408.57375007,0.00082191,120]
[325166555,1714546244845,-477.38311973,0.00082191,120]
[325166557,1714546244854,-500.0,0.00082191,120]
[325166559,1714546244863,-11125.5,0.00082191,120]
[325166561,1714546244873,-500.0,0.00082191,120]
[325166563,1714546244882,-500.0,0.00082191,120]
[325166565,1714546244892,-500.0,0.00082191,120]
[325166567,1714546244901,-348.35489215,0.00082191,120]
[325166569,1714546244911,-500.0,0.00082191,120]
[325166571,1714546244920,-819.11,0.00082191,120]
[325166573,1714546244930,-500.0,0.00082191,120]
[325166575,1714546244940,-500.0,0.00082191,120]
[325166576,1714546244950,-500.0,0.00082191,120]
[325166578,1714546244958,-500.0,0.00082191,120]
[325166580,1714546244968,-514.25,0.00082191,21]
[325166582,1714546244977,-213.89646646,0.00082191,120]
[325166584,1714546244986,-500.0,0.00082191,7]
[325166586,1714546244995,-500.0,0.00082191,120]
[325166588,1714546245005,-1802.95,0.00082191,120]
[325166590,1714546245015,-692.07,0.00082191,120]
[325166592,1714546245025,-2749.95,0.00082191,120]
[325166594,1714546245034,-386.6594287,0.00082191,120]
[325166596,1714546245044,-1019.53,0.00082191,120]
[325166598,1714546245053,-500.0,0.00082191,120]
[325166600,1714546245062,-500.0,0.00082191,120]
[325166602,1714546245072,-500.0,0.00082191,120]
[325166604,1714546245081,-1807.93,0.00082191,120]
[325166606,1714546245090,-500.0,0.00082191,120]
[325166608,1714546245099,-500.0,0.00082191,120]
[325166610,1714546245108,-500.0,0.00082191,120]
[325166612,1714546245118,-500.0,0.00082191,120]
[325166614,1714546245127,-160.7713341,0.00083461,2]
[325166616,1714546245136,-150.0,0.000844,120]
[325166618,1714546245152,-1000.0,0.00084587,120]
[325166620,1714546245163,-170.656335,0.00084712,120]
[325166621,1714546245172,-10000.0,0.00084994,120]
[325166623,1714546245181,-1346.51338276,0.00085859,120]
[325166625,1714546245190,-565.20911443,0.00086,120]
[325166627,1714546245200,-153.0,0.00087123,120]
[325166629,1714546245209,-160.7713341,0.00087571,2]
[325166631,1714546245218,-999.0,0.0008767,120]